bitfinex-derivatives/quotes_BNBF0:USTF0_20251002
["timestamp","ask_amount","ask_price","bid_price","bid_amount"]
[1759371847798,0.86783085,1035.0,1033.3,0.64105328]
[1759371848001,0.1682651,1034.7,1033.3,0.64105328]
[1759371848399,0.1682651,1034.7,1033.2,0.64105328]
[1759371852412,0.1682651,1034.7,1033.1,0.64105328]
[1759371856313,0.1682651,1034.7,1033.2,0.64105328]
[1759371859416,0.1682651,1034.7,1033.1,0.64105328]
[1759371863121,0.86783085,1035.4,1033.1,0.64105328]
[1759371863418,0.16822606,1034.9,1033.1,0.64105328]
[1759371870329,0.16822606,1034.9,1033.0,0.64105328]
[1759371873531,0.16822606,1034.9,1033.1,0.64105328]
[1759371876832,0.16822606,1034.9,1033.2,0.64105328]
[1759371877335,0.86783085,1035.7,1033.3,0.64105328]
[1759371877633,0.16819354,1035.1,1033.4,0.64105328]
[1759371881140,0.86783085,1035.7,1033.4,0.64105328]
[1759371881439,0.16817728,1035.2,1033.4,0.64105328]
[1759371882140,0.16817728,1035.2,1033.5,0.64105328]
[1759371883841,0.86783085,1035.9,1033.5,0.64105328]
[1759371884038,0.86783085,1035.9,1033.6,0.64105328]
[1759371884242,0.16815209,1035.4,1033.6,0.64105328]
[1759371885238,0.16815209,1035.4,1033.7,0.64105328]
[1759371888645,0.16815209,1035.4,1033.6,0.64105328]
[1759371888845,0.16815209,1035.4,1033.7,0.64105328]
[1759371889247,0.16815209,1035.4,1033.6,0.64105328]
[1759371890244,0.16815209,1035.4,1033.7,0.64105328]
[1759371890447,0.16815209,1035.4,1033.6,0.64105328]
[1759371890644,0.16815209,1035.4,1032.4,2.1458952]
[1759371890645,0.16815209,1035.4,1033.7,0.64105328]
[1759371896152,0.16815209,1035.4,1033.8,0.64105328]
[1759371896453,0.86783085,1036.1,1033.7,0.64105328]
[1759371896749,0.1681196,1035.5,1033.7,0.64105328]
[1759371897448,0.1681196,1035.5,1033.8,0.64105328]
[1759371902960,0.1681196,1035.5,1033.9,0.64105328]
[1759371905358,0.1681196,1035.5,1033.8,0.64105328]
[1759371911169,1.03595045,1035.5,1033.8,0.64105328]
[1759371911367,0.1681196,1035.5,1033.8,0.64105328]
[1759371915071,1.03595045,1035.5,1033.8,0.64105328]
[1759371915269,0.86783085,1035.4,1033.8,0.64105328]
[1759371916269,0.86783085,1035.4,1033.8,0.64036419]
[1759371916572,0.86783085,1035.4,1033.8,7.99226625]
[1759371916873,0.86783085,1035.4,1033.8,7.35190206]
[1759371917170,0.86783085,1035.4,1033.8,7.99226625]
[1759371917973,0.86783085,1035.4,1033.8,7.35190206]
[1759371918174,0.86783085,1035.4,1033.8,7.99226625]
[1759371918871,0.86783085,1035.4,1033.8,7.35190206]
[1759371919375,0.86783085,1035.4,1033.8,7.99226625]
[1759371919574,1.03595045,1035.5,1033.8,7.35190206]
[1759371920271,1.03595045,1035.5,1033.8,7.99226625]
[1759371920675,0.1681196,1035.5,1033.8,7.99226625]
[1759371920873,0.1681196,1035.5,1033.9,0.64036419]
[1759371921072,0.1681196,1035.5,1034.0,0.64036419]
[1759371921373,0.1681196,1035.5,1034.1,0.64036419]
[1759371921970,0.1681196,1035.5,1034.2,0.64036419]
[1759371924879,0.1681196,1035.5,1034.1,0.64036419]
[1759371925479,0.1681196,1035.5,1034.0,0.64036419]
[1759371925877,1.03595045,1035.5,1034.0,0.64036419]
[1759371927376,0.86783085,1035.4,1034.0,0.64036419]
[1759371928178,1.03595045,1035.5,1034.0,0.64036419]
[1759371928380,0.86783085,1035.4,1034.0,0.64036419]
[1759371928781,1.03595045,1035.5,1034.0,0.64036419]
[1759371929184,0.1681196,1035.5,1034.1,0.64036419]
[1759371929383,0.1681196,1035.5,1034.1,8.06250294]
[1759371931581,0.1681196,1035.5,1034.1,7.42213875]
[1759371932379,0.86783085,1035.4,1034.1,8.06250294]
[1759371933384,0.86783085,1035.3,1034.1,8.06250294]
[1759371933883,0.86783085,1035.3,1034.1,7.42213875]
[1759371934387,0.86783085,1035.3,1034.1,8.06250294]
[1759371934985,0.86783085,1035.4,1034.1,8.06250294]
[1759371935484,0.86783085,1036.2,1034.7,0.64036419]
[1759371935687,0.16809686,1036.0,1034.7,0.64036419]
[1759371937391,0.16809686,1036.0,1034.8,0.64036419]
[1759371938091,0.16809686,1036.0,1034.9,0.64036419]
[1759371938290,0.86783085,1036.4,1034.8,0.64036419]
[1759371938590,0.1680084,1036.2,1034.9,0.64036419]
[1759371941291,0.86783085,1036.6,1034.8,0.64036419]
[1759371941589,0.16797961,1036.5,1035.0,0.64036419]
[1759371944290,0.16797961,1036.5,1034.9,0.64036419]
[1759371947396,0.16797961,1036.5,1034.8,0.64036419]
[1759371952296,0.16797961,1036.5,1034.6,0.64036419]
[1759371952500,0.16797961,1036.5,1034.4,0.64036419]
[1759371952899,0.16797961,1036.5,1034.5,0.64036419]
[1759371953299,0.16797961,1036.5,1034.2,0.85835808]
[1759371953300,0.16797961,1036.5,1034.7,0.64036419]
[1759371954697,0.16797961,1036.5,1034.2,1.28753712]
[1759371954698,0.16797961,1036.5,1034.6,0.64036419]
[1759371958210,0.16797961,1036.5,1034.5,0.64036419]
[1759371958509,0.16797961,1036.5,1034.6,0.64036419]
[1759371958710,0.16797961,1036.5,1034.5,0.64036419]
[1759371959106,0.16797961,1036.5,1034.6,0.64036419]
[1759371959306,0.16797961,1036.5,1034.5,0.64036419]
[1759371960306,0.16797961,1036.5,1034.6,0.64036419]
[1759371961310,0.16797961,1036.5,1034.5,0.64036419]
[1759371962608,0.16797961,1036.5,1034.6,0.64036419]
[1759371962806,0.16797961,1036.5,1034.5,0.64036419]
[1759371967918,0.16797961,1036.5,1034.6,0.64036419]
[1759371968118,0.16797961,1036.5,1034.7,0.64036419]
[1759371971320,0.86783085,1037.4,1034.7,0.64036419]
[1759371971522,0.16793705,1036.6,1034.8,0.64036419]
[1759371971826,0.86783085,1037.5,1034.8,0.64036419]
[1759371972315,0.86783085,1037.4,1034.8,0.64036419]
[1759371972720,0.16792733,1036.9,1034.8,0.64036419]
[1759371973822,0.16792733,1036.9,1034.6,0.64036419]
[1759371976323,0.16792733,1036.9,1034.7,0.64036419]
[1759371976722,0.16792733,1036.9,1034.6,0.64036419]
[1759371977821,0.16792733,1036.9,1034.7,0.64036419]
[1759371978424,0.16792733,1036.9,1034.8,0.64036419]
[1759371981424,0.16792733,1036.9,1034.9,0.64036419]
[1759371981627,0.16792733,1036.9,1034.8,0.64036419]
[1759371985831,0.16792733,1036.9,1034.7,0.64036419]
[1759371986028,0.16792733,1036.9,1034.4,0.85835808]
[1759371986029,0.16792733,1036.9,1034.6,0.64036419]
[1759371986328,0.16792733,1036.9,1034.7,0.64036419]
[1759371986532,1.03575818,1036.9,1034.6,0.64036419]
[1759371987427,0.86783085,1036.8,1034.7,0.64036419]
[1759371988229,0.86783085,1038.0,1035.5,0.64036419]
[1759371988432,0.1679014,1037.4,1035.7,0.64036419]
[1759371988730,0.1679014,1037.4,1035.8,0.64036419]
[1759371990530,0.1679014,1037.4,1035.7,0.64036419]
[1759371991034,0.1679014,1037.4,1035.8,0.64036419]
[1759371991935,0.1679014,1037.4,1035.7,0.64036419]
[1759371992535,0.1679014,1037.4,1035.4,0.64036419]
[1759371994233,0.1679014,1037.4,1035.5,0.64036419]
[1759371998138,1.03573225,1037.4,1035.5,0.64036419]
[1759371999135,1.03573225,1037.4,1035.4,0.64036419]
[1759371999336,0.86783085,1037.2,1035.3,1.49872227]
[1759371999537,0.86783085,1037.2,1035.3,0.64036419]
[1759372001035,0.86783085,1037.1,1035.2,0.64036419]
[1759372001638,0.86783085,1037.1,1035.3,0.64036419]
[1759372003836,0.86783085,1037.1,1035.1,0.85835808]
[1759372004035,0.86783085,1037.1,1035.3,0.63647535]
[1759372006637,0.86783085,1037.1,1035.2,0.63647535]
[1759372008942,0.86783085,1037.1,1035.3,0.63647535]
[1759372010442,0.86783085,1037.0,1035.2,0.63647535]
[1759372010737,0.86783085,1037.0,1035.1,0.63647535]
[1759372010941,0.86783085,1037.0,1034.1,7.42213875]
[1759372010942,0.86783085,1036.9,1035.2,0.63647535]
[1759372011341,0.86783085,1037.0,1035.2,0.63647535]
[1759372011742,0.86783085,1036.9,1035.2,0.63647535]
[1759372012042,0.1679014,1037.4,1035.4,0.63647535]
[1759372012942,0.1679014,1037.4,1035.1,0.85835808]
[1759372012943,0.1679014,1037.4,1035.5,0.63647535]
[1759372014740,1.03573225,1037.4,1035.5,0.63647535]
[1759372015243,0.86783085,1037.1,1035.4,0.63647535]
[1759372016043,1.03573225,1037.4,1035.3,0.63647535]
[1759372022745,0.1679014,1037.4,1035.1,0.63647535]
[1759372023642,0.1679014,1037.4,1035.2,0.63647535]
[1759372025046,0.1679014,1037.4,1035.3,0.63647535]
[1759372025445,1.03573225,1037.4,1035.3,0.63647535]
[1759372026944,0.86783085,1037.1,1035.4,0.63647535]
[1759372032651,1.28800432,1037.2,1035.4,0.63647535]
[1759372032652,0.86783085,1037.0,1035.4,0.63647535]
[1759372032855,0.86783085,1036.9,1035.3,0.63647535]
[1759372033453,0.86783085,1036.9,1035.2,0.63647535]
[1759372033654,0.86783085,1036.8,1035.3,0.63647535]
[1759372034750,0.86783085,1036.9,1035.3,0.63647535]
[1759372035350,0.86783085,1036.8,1035.2,0.63647535]
[1759372035554,0.86783085,1036.9,1035.2,0.63647535]
[1759372035751,0.86783085,1037.0,1035.2,0.63647535]
[1759372037350,0.86783085,1037.1,1035.2,0.63647535]
[1759372043160,0.86783085,1037.0,1035.2,0.63647535]
[1759372044061,0.86783085,1037.0,1035.4,0.63647535]
[1759372044762,0.86783085,1037.2,1035.4,0.63647535]
[1759372047261,0.86783085,1037.1,1035.4,0.63647535]
[1759372049966,0.86783085,1037.2,1035.5,0.63647535]
[1759372050164,0.86783085,1037.0,1035.5,0.63647535]
[1759372050363,0.86783085,1037.1,1035.6,0.63647535]
[1759372051466,0.86783085,1037.1,1035.4,8.11950981]
[1759372051467,0.86783085,1037.2,1035.7,0.63647535]
[1759372052169,1.03573225,1037.4,1035.6,0.63647535]
[1759372052765,0.86783085,1037.3,1035.6,0.63647535]
[1759372053470,0.86783085,1036.9,1035.7,0.63647535]
[1759372054172,0.86783085,1036.9,1035.5,0.85835808]
[1759372054472,0.86783085,1036.9,1035.7,0.63979973]
[1759372054771,1.28800432,1037.0,1035.6,0.63979973]
[1759372054772,0.86783085,1036.8,1035.6,0.63979973]
[1759372057773,0.86783085,1036.8,1035.7,0.63979973]
[1759372057974,0.86783085,1036.9,1035.7,0.63979973]
[1759372058274,0.86783085,1036.8,1035.7,0.63979973]
[1759372059278,1.28800432,1037.0,1035.7,0.63979973]
[1759372059279,0.86783085,1036.9,1035.7,0.63979973]
[1759372060477,0.86783085,1037.0,1035.7,0.63979973]
[1759372066179,0.86783085,1036.9,1035.7,0.63979973]
[1759372066582,0.86783085,1036.8,1035.7,0.63979973]
[1759372066781,0.86783085,1036.8,1035.6,0.63979973]
[1759372069884,0.86783085,1036.9,1035.5,0.63979973]
[1759372070183,0.86783085,1036.7,1035.5,0.63979973]
[1759372070386,0.86783085,1036.7,1035.4,7.90095146]
[1759372070588,1.28800432,1036.8,1035.5,0.63979973]
[1759372070589,0.86783085,1036.6,1035.5,0.63979973]
[1759372074594,0.86783085,1036.7,1035.4,7.90095146]
[1759372074793,0.86783085,1036.6,1035.4,7.26115173]
[1759372075395,0.86783085,1036.5,1035.4,7.26115173]
[1759372075696,0.86783085,1036.4,1035.4,7.26115173]
[1759372076495,0.86783085,1036.5,1035.4,7.26115173]
[1759372077193,0.86783085,1036.4,1035.4,7.26115173]
[1759372079496,0.86783085,1036.3,1035.4,7.26115173]
[1759372079699,0.86783085,1036.4,1035.4,7.26115173]
[1759372079898,0.86783085,1036.3,1035.4,7.26115173]
[1759372081498,0.86783085,1036.4,1035.4,7.26115173]
[1759372083602,0.86783085,1036.5,1035.4,7.26115173]
[1759372083796,0.86783085,1036.8,1035.4,7.26115173]
[1759372090110,0.86783085,1036.6,1035.4,7.26115173]
[1759372090704,0.86783085,1036.5,1035.4,7.26115173]
[1759372091209,0.86783085,1036.4,1035.4,7.26115173]
[1759372091611,0.86783085,1036.3,1034.9,0.63979973]
[1759372092008,0.86783085,1036.3,1034.8,0.63979973]
[1759372092305,0.86783085,1036.4,1034.7,0.63979973]
[1759372094211,0.86783085,1036.5,1034.7,0.63979973]
[1759372096411,0.86783085,1036.4,1034.7,0.63979973]
[1759372097708,0.86783085,1036.5,1034.7,0.63979973]
[1759372099113,0.86783085,1036.6,1034.8,0.63979973]
[1759372099309,0.86783085,1036.6,1034.7,7.84961014]
[1759372099508,0.86783085,1036.5,1034.7,7.84961014]
[1759372101414,0.86783085,1036.6,1034.7,7.84961014]
[1759372102411,0.86783085,1036.5,1034.7,7.84961014]
[1759372102711,0.86783085,1036.6,1034.7,7.84961014]
[1759372103914,0.86783085,1036.6,1034.7,7.20981041]
[1759372104113,0.86783085,1036.5,1034.7,7.20981041]
[1759372104516,0.86783085,1036.4,1034.7,7.20981041]
[1759372104717,0.86783085,1036.5,1034.7,7.20981041]
[1759372107914,0.86783085,1036.6,1034.7,7.20981041]
[1759372108114,0.86783085,1036.7,1034.7,7.20981041]
[1759372108315,0.86783085,1036.8,1035.0,0.63979973]
[1759372108518,0.86783085,1036.9,1035.0,0.63979973]
[1759372108814,0.86783085,1036.8,1035.0,0.63979973]
[1759372109113,0.86783085,1036.8,1035.1,0.63979973]
[1759372111617,0.86783085,1036.9,1035.0,0.63979973]
[1759372113214,0.86783085,1036.9,1035.1,0.63979973]
[1759372113420,0.86783085,1036.9,1035.0,0.63979973]
[1759372114219,0.86783085,1036.9,1035.1,0.63979973]
[1759372114419,0.86783085,1036.9,1035.0,0.63979973]
[1759372114823,0.86783085,1036.8,1035.1,0.63979973]
[1759372117022,0.86783085,1037.0,1035.0,0.63979973]
[1759372117725,0.86783085,1036.9,1035.0,0.63979973]
[1759372118526,0.86783085,1036.9,1035.1,0.63979973]
[1759372123228,0.86783085,1037.0,1035.1,0.63979973]
[1759372123627,0.86783085,1036.9,1035.1,0.63979973]
[1759372124330,0.86783085,1036.9,1035.2,0.63979973]
[1759372126332,0.86783085,1036.9,1035.1,0.63979973]
[1759372127333,0.86783085,1036.9,1035.2,0.63979973]
[1759372127633,0.86783085,1036.8,1035.2,0.63979973]
[1759372128630,0.86783085,1036.7,1035.2,0.63979973]
[1759372131238,0.86783085,1036.9,1035.0,0.63979973]
[1759372131538,0.86783085,1036.5,1035.1,0.63979973]
[1759372132734,0.86783085,1036.4,1035.1,0.63979973]
[1759372134034,0.86783085,1036.6,1035.0,0.63979973]
[1759372134539,0.86783085,1036.6,1035.1,0.63979973]
[1759372135540,0.86783085,1036.6,1035.0,0.63979973]
[1759372136339,0.86783085,1036.6,1035.1,0.63979973]
[1759372138139,0.86783085,1036.7,1035.0,0.63979973]
[1759372139044,0.86783085,1036.7,1035.1,0.63979973]
[1759372142545,0.86783085,1036.6,1035.2,0.63979973]
[1759372143748,0.86783085,1036.9,1035.1,0.63979973]
[1759372145744,0.86783085,1036.9,1035.2,0.63979973]
[1759372145945,0.86783085,1037.0,1035.2,0.63979973]
[1759372149850,0.86783085,1036.8,1035.2,0.63979973]
[1759372150244,0.86783085,1036.8,1034.7,8.49734753]
[1759372150245,0.86783085,1036.7,1035.3,0.63979973]
[1759372151352,0.86783085,1036.7,1035.2,0.63979973]
[1759372151553,0.86783085,1036.7,1035.3,0.63979973]
[1759372151848,1.28800432,1036.9,1035.2,0.63979973]
[1759372151849,0.86783085,1036.9,1035.2,0.63979973]
[1759372152151,0.86783085,1037.0,1035.0,0.63979973]
[1759372154453,0.86783085,1036.9,1035.1,0.63979973]
[1759372154952,0.86783085,1036.8,1035.1,0.63979973]
[1759372156053,0.86783085,1036.8,1034.8,0.85835808]
[1759372156550,0.86783085,1036.8,1034.7,7.20981041]
[1759372156750,0.86783085,1036.8,1035.1,0.64087737]
[1759372156751,0.86481367,1036.8,1035.1,0.64087737]
[1759372156952,0.86481367,1036.7,1035.1,0.64087737]
[1759372157455,0.86481367,1036.6,1035.2,0.64087737]
[1759372157757,0.86481367,1036.5,1035.1,0.64087737]
[1759372158857,0.86481367,1036.3,1035.0,0.64087737]
[1759372159054,0.86481367,1036.2,1035.0,0.64087737]
[1759372162860,0.86481367,1036.2,1034.9,0.64087737]
[1759372164263,0.86481367,1035.9,1034.7,7.20981041]
[1759372165363,0.86481367,1036.0,1034.7,7.20981041]
[1759372170569,0.86481367,1035.8,1034.1,0.64087737]
[1759372172270,0.86481367,1035.8,1034.0,0.64087737]
[1759372173170,0.86481367,1035.9,1034.0,0.64087737]
[1759372176069,0.86481367,1036.0,1034.0,0.64087737]
[1759372176272,0.86481367,1036.0,1033.9,0.64087737]
[1759372176571,0.86481367,1036.0,1034.0,0.64087737]
[1759372176768,0.86481367,1036.0,1033.9,0.64087737]
[1759372179269,0.86481367,1036.1,1033.9,0.64087737]
[1759372183773,0.86481367,1036.0,1033.9,0.64087737]
[1759372186375,1.28800432,1036.2,1033.8,0.64087737]
[1759372186376,0.86481367,1036.1,1033.8,0.64087737]
[1759372188075,0.86481367,1036.1,1033.9,0.64087737]
[1759372188280,0.86481367,1036.1,1033.9,7.4065619]
[1759372188678,0.16812853,1035.6,1033.9,7.4065619]
[1759372200990,0.16812853,1035.6,1033.9,8.04743927]
[1759372201591,0.16812853,1035.6,1034.0,0.64087737]
[1759372204288,0.16812853,1035.6,1034.1,0.64087737]
[1759372205992,0.16812853,1035.6,1034.2,0.64087737]
[1759372208595,0.16812853,1035.6,1034.1,0.64087737]
[1759372209397,0.16812853,1035.6,1034.0,0.64087737]
[1759372212303,0.16812853,1035.6,1034.1,0.64087737]
[1759372213300,1.0329422,1035.6,1033.9,8.04743927]
[1759372213499,0.16812853,1035.6,1033.9,8.04743927]
[1759372213800,0.86481367,1035.4,1033.9,7.4065619]
[1759372214203,0.86481367,1035.3,1033.9,7.4065619]
[1759372216100,0.86481367,1035.2,1033.9,7.4065619]
[1759372217302,0.86481367,1035.1,1033.9,7.4065619]
[1759372217500,0.86481367,1035.2,1033.9,7.4065619]
[1759372221805,0.86481367,1035.3,1033.9,7.4065619]
[1759372222206,0.86481367,1035.4,1033.9,7.4065619]
[1759372222500,0.86481367,1035.3,1033.9,7.4065619]
[1759372226708,0.86481367,1035.3,1033.6,0.80908148]
[1759372227809,0.86481367,1035.4,1033.6,0.80908148]
[1759372228909,0.86481367,1035.3,1033.6,0.80908148]
[1759372229711,0.86481367,1035.4,1033.7,0.64087737]
[1759372230011,0.86481367,1035.4,1033.7,8.09722385]
[1759372230211,0.86481367,1035.4,1033.6,0.80908148]
[1759372231211,0.86481367,1035.3,1033.6,0.80908148]
[1759372235412,0.86481367,1035.3,1033.6,0.16820411]
[1759372237809,0.86481367,1035.3,1033.6,0.80908148]
[1759372238014,0.86481367,1035.3,1033.6,8.19875594]
[1759372238513,0.86481367,1035.3,1033.6,7.55787857]
[1759372238909,0.86481367,1035.3,1033.6,8.19875594]
[1759372242715,0.86481367,1035.4,1033.6,7.55787857]
[1759372243718,0.86481367,1035.3,1033.6,8.19875594]
[1759372245320,0.86481367,1035.3,1033.6,7.55787857]
[1759372245517,0.86481367,1035.3,1033.6,8.19875594]
[1759372246528,0.86481367,1035.4,1033.7,0.64087737]
[1759372250224,0.86481367,1035.5,1033.7,0.64087737]
[1759372253928,0.86481367,1035.5,1033.8,0.64087737]
[1759372255330,0.86481367,1035.4,1033.8,0.64087737]
[1759372256133,0.86481367,1035.5,1033.8,0.64087737]
[1759372256834,1.0329422,1035.6,1033.8,0.64087737]
[1759372258534,0.16812853,1035.6,1033.8,0.64087737]
[1759372260033,0.16812853,1035.6,1033.7,0.64087737]
[1759372260330,0.16812853,1035.6,1033.8,0.64087737]
[1759372266735,0.86481367,1035.4,1033.8,0.64087737]
[1759372266942,0.86481367,1035.4,1033.7,0.64087737]
[1759372267338,0.86481367,1035.3,1033.8,0.64087737]
[1759372268338,0.86481367,1035.2,1033.8,0.64087737]
[1759372268540,1.28800432,1035.5,1033.8,0.64087737]
[1759372268541,0.86481367,1035.3,1033.8,0.64087737]
[1759372268740,0.86481367,1035.2,1033.8,0.64087737]
[1759372270338,0.86481367,1035.2,1033.9,0.64087737]
[1759372281545,0.86481367,1035.3,1033.9,0.64087737]
[1759372281746,0.86481367,1035.4,1034.0,0.64087737]
[1759372281947,0.86481367,1035.4,1034.1,0.64087737]
[1759372282143,0.86481367,1035.5,1034.1,0.64087737]
[1759372283044,0.86481367,1035.4,1034.1,0.64087737]
[1759372283347,0.86481367,1035.4,1034.2,0.64087737]
[1759372285045,0.86481367,1035.5,1034.1,0.64087737]
[1759372289348,0.16812853,1035.6,1034.1,0.64087737]
[1759372289650,0.16812853,1035.6,1034.2,0.64087737]
[1759372291356,0.86481367,1035.4,1034.1,0.64087737]
[1759372292451,0.86481367,1035.4,1034.2,0.64087737]
[1759372295364,0.86481367,1035.5,1034.3,0.64087737]
[1759372298664,0.16812853,1035.6,1034.3,0.64087737]
[1759372298665,1.0329422,1035.6,1034.3,0.64087737]
[1759372299463,0.86481367,1035.5,1034.2,0.64087737]
[1759372300267,0.16812853,1035.6,1034.2,0.64087737]
[1759372300465,0.16812853,1035.6,1033.7,1.28753712]
[1759372300466,0.16812853,1035.6,1034.3,0.64087737]
[1759372306573,0.16812853,1035.6,1033.6,7.55787857]
[1759372306574,0.16812853,1035.6,1034.2,0.64087737]
[1759372308374,0.16812853,1035.6,1033.6,7.55787857]
[1759372308375,1.0329422,1035.6,1034.0,0.64087737]
[1759372311077,0.16812853,1035.6,1034.0,0.64087737]
[1759372311380,1.0329422,1035.6,1034.0,0.64087737]
[1759372313077,0.16812853,1035.6,1034.0,0.64087737]
[1759372317083,0.16812853,1035.6,1034.1,0.64087737]
[1759372317383,0.16812853,1035.6,1034.1,7.50765363]
[1759372317679,0.16812853,1035.6,1034.1,6.86677626]
[1759372318380,0.16812853,1035.6,1034.1,7.50765363]
[1759372319381,0.86481367,1035.4,1033.7,0.64087737]
[1759372319585,0.86481367,1034.8,1033.3,0.64087737]
[1759372320085,0.86481367,1034.8,1033.3,0.80916038]
[1759372321387,0.86481367,1034.8,1033.3,0.16828301]
[1759372322088,0.86481367,1034.9,1033.3,0.16828301]
[1759372323385,0.86481367,1034.8,1033.3,0.16828301]
[1759372325085,0.86481367,1034.9,1033.3,0.16828301]
[1759372325886,0.86481367,1034.8,1033.3,0.16828301]
[1759372326189,0.86481367,1034.9,1033.3,0.16828301]
[1759372326989,0.86481367,1035.0,1033.3,0.16828301]
[1759372328590,0.86481367,1035.3,1033.3,0.80916038]
[1759372329086,0.86481367,1035.3,1033.3,0.16828301]
[1759372329288,0.86481367,1035.4,1033.3,0.16828301]
[1759372331193,0.86481367,1035.4,1033.3,0.80916038]
[1759372331595,0.86481367,1035.5,1033.3,0.80916038]
[1759372332495,0.86481367,1035.5,1033.4,0.64087737]
[1759372336796,0.86481367,1035.4,1033.4,0.64087737]
[1759372337497,0.86481367,1035.3,1033.4,0.64087737]
[1759372340702,1.0329422,1035.6,1033.3,0.80916038]
[1759372350305,0.86481367,1035.3,1033.4,0.64087737]
[1759372351508,0.86481367,1035.4,1033.4,0.64087737]
[1759372352005,0.86481367,1035.3,1033.4,0.64087737]
[1759372352209,0.86481367,1035.3,1033.3,0.16828301]
[1759372352210,0.86481367,1035.4,1033.5,0.64087737]
[1759372354612,0.86481367,1035.4,1033.4,0.64087737]
[1759372354912,0.86481367,1035.3,1033.4,0.64087737]
[1759372361420,0.86481367,1035.3,1033.5,0.64087737]
[1759372365519,0.86481367,1035.4,1033.6,0.64087737]
[1759372365721,0.86481367,1035.4,1033.7,0.64087737]
[1759372367428,0.86481367,1035.3,1033.7,0.64087737]
[1759372368225,0.86481367,1035.3,1033.5,0.85450316]
[1759372368419,0.86481367,1035.3,1033.7,0.64491325]
[1759372374234,0.86481367,1035.3,1033.8,0.64491325]
[1759372374433,0.86481367,1035.3,1033.7,0.64491325]
[1759372374734,0.86481367,1035.0,1033.4,0.64491325]
[1759372374933,0.86481367,1034.8,1033.1,0.64491325]
[1759372375130,0.86481367,1034.8,1033.3,0.16824721]
[1759372375931,0.86481367,1034.7,1033.0,0.64491325]
[1759372376131,0.86481367,1034.7,1033.1,0.16830986]
[1759372376331,0.86481367,1034.5,1033.1,0.81322311]
[1759372378133,0.86481367,1034.6,1033.1,0.81322311]
[1759372378435,0.86481367,1034.5,1033.1,0.81322311]
[1759372379029,0.86481367,1034.6,1033.1,0.81322311]
[1759372379428,0.86481367,1034.5,1033.1,0.81322311]
[1759372380632,0.86481367,1034.6,1033.1,0.81322311]
[1759372381033,0.86481367,1034.5,1033.1,0.81322311]
[1759372381934,0.86481367,1034.6,1033.1,0.81322311]
[1759372382932,0.86481367,1034.5,1033.1,0.81322311]
[1759372383633,0.86481367,1034.6,1033.1,0.81322311]
[1759372384231,0.86481367,1034.5,1033.1,0.81322311]
[1759372384534,0.86481367,1034.6,1033.1,0.81322311]
[1759372388033,0.86481367,1034.9,1033.1,0.16830986]
[1759372388331,0.86481367,1035.0,1033.1,0.81322311]
[1759372389136,0.16828138,1034.6,1033.1,0.81322311]
[1759372390036,0.16828138,1034.6,1033.2,0.64491325]
[1759372390333,0.16828138,1034.6,1033.4,0.64491325]
[1759372391345,0.16828138,1034.6,1033.5,0.64491325]
[1759372392139,0.16823175,1034.8,1033.6,0.64491325]
[1759372393736,0.86481367,1035.3,1033.7,0.64491325]
[1759372393941,0.16819882,1035.0,1033.8,0.64491325]
[1759372395042,0.86481367,1035.4,1033.9,0.64491325]
[1759372395242,0.16817728,1035.1,1033.9,0.64491325]
[1759372399041,0.16817728,1035.1,1034.0,0.64491325]
[1759372399546,0.86481367,1035.8,1034.0,0.64491325]
[1759372399846,0.16814315,1035.4,1034.0,0.64491325]
[1759372400747,0.86481367,1034.4,1032.5,0.64491325]
[1759372400946,0.86481367,1035.3,1033.2,0.16820207]
[1759372401242,0.86481367,1034.7,1032.9,0.64491325]
[1759372401441,0.86481367,1034.6,1033.0,0.16829603]
[1759372402144,0.86481367,1034.7,1033.0,0.16829603]
[1759372402944,0.86481367,1034.8,1033.0,0.16829603]
[1759372404649,0.86481367,1034.7,1033.0,0.16829603]
[1759372405747,0.16814315,1035.4,1033.0,0.16829603]
[1759372405748,0.86481367,1034.6,1033.0,0.16829603]
[1759372406452,0.86481367,1034.7,1033.0,0.16829603]
[1759372407654,0.86481367,1034.9,1033.0,0.16829603]
[1759372408056,0.86481367,1034.8,1033.0,0.16829603]
[1759372408355,0.86481367,1034.6,1033.0,0.16829603]
[1759372408756,0.86481367,1034.5,1033.0,0.16829603]
[1759372409156,0.86481367,1034.7,1033.0,0.16829603]
[1759372409356,0.86481367,1034.8,1033.0,0.16829603]
[1759372409857,0.86481367,1034.7,1033.0,0.16829603]
[1759372410153,0.86481367,1034.8,1033.0,0.16829603]
[1759372413555,0.86481367,1034.6,1033.0,0.16829603]
[1759372419860,0.86481367,1034.8,1033.0,0.16829603]
[1759372423259,0.86481367,1034.9,1033.0,0.16829603]
[1759372426456,0.86481367,1035.0,1033.0,0.16829603]
[1759372426760,0.86481367,1034.9,1033.0,0.16829603]
[1759372432765,0.86481367,1035.0,1033.0,0.16829603]
[1759372433065,0.86481367,1035.2,1033.0,0.16829603]
[1759372433262,0.86481367,1035.0,1033.0,0.16829603]
[1759372433562,0.86481367,1035.1,1033.0,0.81320928]
[1759372434263,0.86481367,1035.0,1033.0,0.81320928]
[1759372436765,0.86481367,1035.1,1033.1,0.64491325]
[1759372438864,0.86481367,1035.2,1033.1,0.64491325]
[1759372439064,0.86481367,1035.3,1033.2,0.64491325]
[1759372440267,0.86481367,1035.2,1033.3,0.64491325]
[1759372440468,0.86481367,1035.3,1033.4,0.64491325]
[1759372443271,1.03295682,1035.4,1033.4,0.64491325]
[1759372443767,0.86481367,1035.3,1033.4,0.64491325]
[1759372444370,1.03295682,1035.4,1033.4,0.64491325]
[1759372444571,0.86481367,1035.3,1033.3,0.64491325]
[1759372444971,1.03295682,1035.4,1033.4,0.64491325]
[1759372446372,1.03295682,1035.4,1033.3,0.64491325]
[1759372449677,0.16814315,1035.4,1033.2,0.64491325]
[1759372449875,0.16814315,1035.4,1033.1,0.64491325]
[1759372452581,0.16814315,1035.4,1033.0,0.81320928]
[1759372452783,1.03295682,1035.4,1033.0,0.81320928]
[1759372453583,1.03295682,1035.4,1033.0,0.16829603]
[1759372453784,1.03295682,1035.4,1033.0,0.81151379]
[1759372454885,0.86481367,1035.2,1033.1,0.64321776]
[1759372456385,0.86481367,1035.2,1033.0,0.81151379]
[1759372456583,0.86481367,1035.2,1033.1,0.64321776]
[1759372456886,0.86481367,1035.1,1033.0,0.16829603]
[1759372457188,0.86481367,1035.2,1033.0,0.16829603]
[1759372458084,0.86481367,1035.1,1033.0,0.16829603]
[1759372460290,0.86481367,1035.1,1033.0,0.81151379]
[1759372460486,0.86481367,1035.0,1033.0,0.81151379]
[1759372461788,0.86481367,1034.9,1033.2,0.64321776]
[1759372462290,0.86481367,1035.0,1033.2,0.64321776]
[1759372463188,0.86481367,1035.1,1033.2,0.64321776]
[1759372463488,0.86481367,1035.2,1033.3,0.64321776]
[1759372464092,0.86481367,1035.1,1033.3,0.64321776]
[1759372464294,0.86481367,1035.2,1033.3,0.64321776]
[1759372464492,0.86481367,1035.1,1033.4,0.64321776]
[1759372464890,0.86481367,1035.2,1033.3,0.64321776]
[1759372465293,0.86481367,1035.3,1033.3,0.64321776]
[1759372466396,1.03295682,1035.4,1033.4,0.64321776]
[1759372466993,0.16814315,1035.4,1033.5,0.64321776]
[1759372467292,1.03295682,1035.4,1033.5,0.64321776]
[1759372467493,0.16814315,1035.4,1033.6,0.64321776]